fUSD/lending_fUSD_20240223
["ID","MTS","AMOUNT","RATE_DAILY","PERIOD"]
[314973135,1708708264600,-500.0,0.00028904,2]
[314973136,1708708264609,-1204.12,0.00028904,2]
[314973137,1708708264621,-500.0,0.00028904,2]
[314973138,1708708264630,-500.0,0.00028904,2]
[314973139,1708708264641,-732.51,0.00028904,2]
[314973140,1708708264650,-1076.17,0.00028904,2]
[314973141,1708708264661,-1624.92,0.00028904,2]
[314973142,1708708264671,-1776.01,0.00028904,2]
[314973143,1708708264680,-629.8,0.00028904,2]
[314973144,1708708264690,-1789.17,0.00028904,2]
[314973145,1708708264700,-1115.24,0.00028904,2]
[314973146,1708708264710,-1141.39,0.00028904,2]
[314973147,1708708264720,-2038.67,0.00028904,2]
[314973148,1708708264730,-573.83,0.00028904,2]
[314973149,1708708264740,-963.44,0.00028904,2]
[314973150,1708708264751,-678.01,0.00028904,2]
[314973151,1708708264761,-500.0,0.00028904,2]
[314973152,1708708264774,-3143.61,0.00028904,2]
[314973153,1708708264784,-579.45,0.00028904,2]
[314973154,1708708264794,-500.0,0.00028904,2]
[314973155,1708708264804,-500.0,0.00028904,2]
[314973156,1708708264814,-30158.05772281,0.00028906,2]
[314973157,1708708264824,-355.20424175,0.00028906,2]
[314973158,1708708264834,-154.02083881,0.00028908,2]
[314973159,1708708264843,-300.0,0.00028913,2]
[314973160,1708708264853,-1500.0,0.0002892,2]
[314973161,1708708264863,-156.57354395,0.0002892,2]
[314973162,1708708264872,-85843.16294044,0.00028921,2]
[314973163,1708708264882,-14926.4175111,0.00028923,2]
[314973164,1708708264892,-355.20424175,0.00028926,2]
[314973165,1708708264901,-173.73,0.00028928,2]
[314973166,1708708264911,-725.72236403,0.00028934,2]
[314973167,1708708264920,-300.0,0.00028936,2]
[314973168,1708708264930,-150.0,0.00028937,2]
[314973169,1708708264939,-150.0,0.00028938,2]
[314973170,1708708264949,-32468.17135125,0.00028943,2]
[314973171,1708708264958,-150.0,0.00028944,2]
[314973172,1708708264968,-150.0,0.00028944,2]
[314973173,1708708264978,-1687.68629731,0.00028947,2]
[314973174,1708708264987,-32468.17135125,0.00028947,2]
[314973175,1708708264997,-150.0,0.00028951,2]
[314973176,1708708265006,-1500.0,0.00028952,2]
[314973177,1708708265016,-150.0,0.00028957,2]
[314973178,1708708265028,-150.0,0.00028961,2]
[314973179,1708708265038,-85843.16294044,0.00028961,2]
[314973180,1708708265047,-7201.65344579,0.00028966,2]
[314973181,1708708265057,-300.0,0.00028969,2]
[314973182,1708708265067,-725.72236403,0.0002897,2]
[314973183,1708708265076,-150.0,0.00028976,2]
[314973184,1708708265086,-155.14487318,0.00028977,2]
[314973185,1708708265096,-7201.65344579,0.00028978,2]
[314973186,1708708265106,-150.0,0.00028979,2]
[314973187,1708708265116,-219732.0370305,0.0002898,2]
[314973188,1708708265125,-151.0,0.0002898,7]
[314973189,1708708265135,-151.0,0.0002898,7]
[314973190,1708708265145,-151.0,0.00028986,7]
[314973191,1708708265155,-1351.37974467,0.00028988,2]
[314973192,1708708265165,-151.0,0.00028991,7]
[314973193,1708708265175,-151.0,0.00028991,7]
[314973194,1708708265185,-5492.8271147,0.00028991,2]
[314973195,1708708265195,-168.75267509,0.00028992,2]
[314973196,1708708265206,-150.0,0.00028993,2]
[314973197,1708708265217,-6939.01706374,0.00028998,2]
[314973198,1708708265227,-203597.22038662,0.00029,2]
[314973199,1708708265237,-22804.163206,0.00029,2]
[314973200,1708708265247,-239516.495444,0.00029,2]
[314973201,1708708265258,-239516.495444,0.00029,2]
[314973202,1708708265267,-239516.495444,0.00029,2]
[314973203,1708708265277,-239516.495444,0.00029,2]
[314973204,1708708265288,-13749.695443,0.00029,2]
[314973205,1708708265297,-13749.695443,0.00029,2]
[314973206,1708708265307,-1242.97925502,0.00029,2]
[314973207,1708708265317,-100157.207097,0.00029,2]
[314973208,1708708265327,-189813.390669,0.00029,2]
[314973209,1708708265336,-22804.163207,0.00029,2]
[314973210,1708708265346,-22804.163207,0.00029,2]
[314973211,1708708265355,-22804.163207,0.00029,2]
[314973212,1708708265365,-1933.168056,0.00029,2]
[314973213,1708708265375,-1500.0,0.00029,2]
[314973214,1708708265385,-23688.575536,0.00029,2]
[314973215,1708708265396,-5000.34283844,0.00029,3]
[314973216,1708708265405,-29725.12499081,0.00029,2]
[314973217,1708708265415,-850.0,0.00029,3]
[314973218,1708708265425,-2770.365143,0.00029,2]
[314973219,1708708265435,-1513.387585,0.00029,2]
[314973220,1708708265445,-1721.884793,0.00029,2]
[314973221,1708708265455,-531.33139332,0.00029,2]
[314973222,1708708265465,-151.0,0.00029,7]
[314973223,1708708265475,-151.0,0.00029,7]
[314973224,1708708265484,-151.0,0.00029,7]
[314973225,1708708265494,-153.821496,0.00029,7]
[314973226,1708708265504,-151.0,0.00029,7]
[314973227,1708708265514,-151.010962,0.00029,7]
[314973228,1708708265524,-151.0,0.00029,7]
[314973229,1708708265534,-151.0,0.00029,7]
[314973230,1708708265546,-153.156651,0.00029,7]
[314973231,1708708265555,-449.046,0.00029,7]
[314973232,1708708265565,-449.046,0.00029,7]
[314973233,1708708265575,-449.046,0.00029,7]
[314973234,1708708265586,-449.046,0.00029,7]
[314973235,1708708265597,-151.0,0.00029,2]
[314973236,1708708265607,-151.0,0.00029,7]
[314973237,1708708265617,-151.0,0.00029,7]
[314973238,1708708265627,-155.913238,0.00029,7]
[314973239,1708708265637,-152.306449,0.00029,7]
[314973240,1708708265647,-151.0,0.00029,7]
[314973241,1708708265657,-151.0,0.00029,7]
[314973242,1708708265667,-900.0,0.00029,30]
[314973243,1708708265678,-13710.0,0.00029,2]
[314973244,1708708265688,-151.0,0.00029,7]
[314973245,1708708265699,-151.0,0.00029,7]
[314973246,1708708265709,-151.0,0.00029,3]
[314973247,1708708265720,-151.0,0.00029,3]
[314973248,1708708265730,-265.370214,0.00029,3]
[314973249,1708708265740,-151.0,0.00029,2]
[314973250,1708708265750,-151.0,0.00029,2]
[314973251,1708708265760,-151.0,0.00029,7]
[314973252,1708708265771,-151.0,0.00029,7]
[314973253,1708708265781,-151.0,0.00029,7]
[314973254,1708708265792,-151.0,0.00029,7]
[314973255,1708708265802,-151.0,0.00029,7]
[314973256,1708708265812,-151.0,0.00029,7]
[314973257,1708708265822,-151.0,0.00029,7]
[314973258,1708708265832,-170.989336,0.00029,7]
[314973259,1708708265842,-151.0,0.00029,7]
[314973260,1708708265852,-151.0,0.00029,7]
[314973261,1708708265864,-254.239516,0.00029,7]
[314973262,1708708265874,-150.0,0.00029002,2]
[314973263,1708708265884,-150.0,0.00029005,2]
[314973264,1708708265894,-154.98329938,0.00029011,2]
[314973265,1708708265904,-1328.22794845,0.00029014,2]
[314973266,1708708265915,-167.02514081,0.0002903,2]
[314973267,1708708265925,-150.0,0.00029039,2]
[314973268,1708708265936,-158.27419453,0.0002904,2]
[314973269,1708708265946,-4983.01824528,0.0002904,2]
[314973270,1708708265956,-21530.50325425,0.00029041,2]
[314973271,1708708265966,-151.0,0.00029041,7]
[314973272,1708708265976,-500.0,0.00029041,2]
[314973273,1708708265987,-500.0,0.00029041,2]
[314973274,1708708265997,-500.0,0.00029041,2]
[314973275,1708708266008,-500.0,0.00029041,2]
[314973276,1708708266019,-500.0,0.00029041,2]
[314973277,1708708266029,-518.18,0.00029041,2]
[314973278,1708708266039,-556.81,0.00029041,2]
[314973279,1708708266050,-500.0,0.00029041,2]
[314973280,1708708266060,-500.0,0.00029041,2]
[314973281,1708708266070,-500.0,0.00029041,2]
[314973282,1708708266080,-576.47,0.00029041,2]
[314973283,1708708266090,-500.0,0.00029041,2]
[314973284,1708708266101,-998.18,0.00029041,2]
[314973285,1708708266111,-500.0,0.00029041,2]
[314973286,1708708266120,-521.42,0.00029041,2]
[314973287,1708708266130,-684.37,0.00029041,2]
[314973288,1708708266141,-674.6,0.00029041,2]
[314973289,1708708266151,-500.0,0.00029041,2]
[314973290,1708708266161,-1130.32,0.00029041,2]
[314973291,1708708266171,-1732.27,0.00029041,2]
[314973292,1708708266181,-934.36,0.00029041,2]
[314973293,1708708266191,-500.0,0.00029041,2]
[314973294,1708708266202,-151.0,0.00029041,7]
[314973295,1708708266212,-1204.12,0.00029041,2]
[314973296,1708708266222,-500.0,0.00029041,2]
[314973297,1708708266233,-500.0,0.00029041,2]
[314973298,1708708266244,-732.51,0.00029041,2]
[314973299,1708708266254,-1076.17,0.00029041,2]
[314973300,1708708266264,-1624.92,0.00029041,2]
[314973301,1708708266277,-1776.01,0.00029041,2]
[314973302,1708708266287,-629.8,0.00029041,2]
[314973303,1708708266298,-1789.17,0.00029041,2]
[314973304,1708708266308,-1115.24,0.00029041,2]
[314973305,1708708266318,-1141.39,0.00029041,2]
[314973306,1708708266328,-2038.67,0.00029041,2]
[314973307,1708708266339,-573.83,0.00029041,2]
[314973308,1708708266349,-963.44,0.00029041,2]
[314973309,1708708266359,-678.01,0.00029041,2]
[314973310,1708708266370,-3143.61,0.00029041,2]
[314973311,1708708266380,-500.0,0.00029041,2]
[314973312,1708708266390,-151.0,0.00029041,7]
[314973313,1708708266401,-579.45,0.00029041,2]
[314973314,1708708266412,-500.0,0.00029041,2]
[314973315,1708708266422,-500.0,0.00029041,2]
[314973316,1708708266432,-155.59752133,0.00029044,2]
[314973317,1708708266443,-192.59378234,0.00029062,2]
[314973318,1708708266453,-4736.06516168,0.00029071,2]
[314973319,1708708266463,-1328.22794845,0.00029081,2]
[314973320,1708708266472,-151.0,0.00029094,120]
[314973321,1708708266482,-352.0,0.000291,2]
[314973322,1708708266492,-192.59378234,0.00029106,2]
[314973323,1708708266501,-1687.68629731,0.00029108,2]
[314973324,1708708266511,-155.85963337,0.00029109,2]
[314973325,1708708266523,-154.0,0.00029111,2]
[314973326,1708708266533,-158.44336474,0.00029121,2]
[314973327,1708708266545,-255.02542379,0.00029125,2]
[314973328,1708708266555,-167.87801701,0.00029135,2]
[314973329,1708708266565,-158.00337685,0.00029142,2]
[314973330,1708708266575,-154.02083881,0.0002915,2]
[314973331,1708708266585,-488.0,0.00029152,2]
[314973332,1708708266595,-1147.34847841,0.00029157,4]
[314973333,1708708266605,-255.02542379,0.00029157,2]
[314973334,1708708266615,-19313.7766309,0.00029158,2]
[314973335,1708708266626,-151.54644394,0.0002916,2]
[314973336,1708708266636,-500.0,0.00029178,2]
[314973337,1708708266647,-500.0,0.00029178,2]
[314973338,1708708266657,-500.0,0.00029178,2]
[314973339,1708708266667,-500.0,0.00029178,2]
[314973340,1708708266677,-500.0,0.00029178,2]
[314973341,1708708266688,-518.18,0.00029178,2]
[314973342,1708708266698,-556.81,0.00029178,2]
[314973343,1708708266885,-500.0,0.00029178,2]
[314973344,1708708266923,-500.0,0.00029178,2]
[314973345,1708708266932,-500.0,0.00029178,2]
[314973346,1708708266942,-576.47,0.00029178,2]
[314973347,1708708266951,-500.0,0.00029178,2]
[314973348,1708708266961,-998.18,0.00029178,2]
[314973349,1708708266970,-168.4531371,0.00029178,2]
[314973350,1708708266979,-500.0,0.00029178,2]
[314973351,1708708266989,-521.42,0.00029178,2]
[314973352,1708708266998,-684.37,0.00029178,2]
[314973353,1708708267008,-674.6,0.00029178,2]
[314973354,1708708267017,-259.59093901,0.00029178,2]
[314973355,1708708267029,-1130.32,0.00029178,2]
[314973356,1708708267039,-1732.27,0.00029178,2]
[314973357,1708708267049,-934.36,0.00029178,2]
[314973358,1708708267058,-500.0,0.00029178,2]
[314973359,1708708267068,-1204.12,0.00029178,2]
[314973360,1708708267077,-500.0,0.00029178,2]
[314973361,1708708267087,-500.0,0.00029178,2]
[314973362,1708708267098,-732.51,0.00029178,2]
[314973363,1708708267108,-1076.17,0.00029178,2]
[314973364,1708708267118,-1624.92,0.00029178,2]
[314973365,1708708267128,-1776.01,0.00029178,2]
[314973366,1708708267138,-629.8,0.00029178,2]
[314973367,1708708267148,-1789.17,0.00029178,2]
[314973368,1708708267157,-1115.24,0.00029178,2]
[314973369,1708708267167,-1141.39,0.00029178,2]
[314973370,1708708267177,-2038.67,0.00029178,2]
[314973371,1708708267187,-573.83,0.00029178,2]
[314973372,1708708267197,-963.44,0.00029178,2]
[314973373,1708708267207,-678.01,0.00029178,2]
[314973374,1708708267217,-3143.61,0.00029178,2]
[314973375,1708708267227,-500.0,0.00029178,2]
[314973376,1708708267236,-579.45,0.00029178,2]
[314973377,1708708267246,-500.0,0.00029178,2]
[314973378,1708708267255,-500.0,0.00029178,2]
[314973379,1708708267265,-155.14487318,0.00029184,2]
[314973380,1708708267277,-16993.57581157,0.000292,2]
[314973381,1708708267287,-151.0,0.000292,7]
[314973382,1708708267297,-449.046,0.000292,7]
[314973383,1708708267306,-449.046,0.000292,7]
[314973384,1708708267316,-266.0,0.00029207,5]
[314973385,1708708267326,-1733.96185551,0.0002921,2]
[314973386,1708708267335,-158.44336474,0.00029215,2]
[314973387,1708708267344,-152.0,0.00029223,4]
[314973388,1708708267354,-167.02514081,0.00029242,2]
[314973389,1708708267363,-1733.96185551,0.00029258,2]
[314973390,1708708267372,-156.57354395,0.00029258,2]
[314973391,1708708267382,-159.29487323,0.00029261,2]
[314973392,1708708267391,-766.50211336,0.00029262,4]
[314973393,1708708267401,-155.76031539,0.0002927,2]
[314973394,1708708267411,-167.02514081,0.0002928,2]
[314973395,1708708267421,-169.94,0.00029283,2]
[314973396,1708708267431,-200.97127983,0.0002929,3]
[314973397,1708708267440,-500.0,0.000293,2]
[314973398,1708708267450,-4736.06516168,0.00029307,2]
[314973399,1708708267459,-156.57354395,0.00029308,2]
[314973400,1708708267469,-153.50007692,0.00029308,2]
[314973401,1708708267478,-500.0,0.00029315,2]
[314973402,1708708267488,-500.0,0.00029315,2]
[314973403,1708708267497,-500.0,0.00029315,2]
[314973404,1708708267507,-500.0,0.00029315,2]
[314973405,1708708267516,-500.0,0.00029315,2]
[314973406,1708708267528,-518.18,0.00029315,2]
[314973407,1708708267538,-556.81,0.00029315,2]
[314973408,1708708267550,-500.0,0.00029315,2]
[314973409,1708708267559,-500.0,0.00029315,2]
[314973410,1708708267568,-500.0,0.00029315,2]
[314973411,1708708267578,-576.47,0.00029315,2]
[314973412,1708708267589,-500.0,0.00029315,2]
[314973413,1708708267598,-998.18,0.00029315,2]
[314973414,1708708267608,-500.0,0.00029315,2]
[314973415,1708708267616,-521.42,0.00029315,2]
[314973416,1708708267627,-684.37,0.00029315,2]
[314973417,1708708267638,-674.6,0.00029315,2]
[314973418,1708708267648,-1130.32,0.00029315,2]
[314973419,1708708267657,-1732.27,0.00029315,2]
[314973420,1708708267667,-934.36,0.00029315,2]
[314973421,1708708267677,-500.0,0.00029315,2]
[314973422,1708708267686,-1204.12,0.00029315,2]
[314973423,1708708267696,-523.28514042,0.00029315,2]
[314973424,1708708267706,-732.51,0.00029315,2]
[314973425,1708708267717,-1076.17,0.00029315,2]
[314973426,1708708267727,-1624.92,0.00029315,2]
[314973427,1708708267737,-1776.01,0.00029315,2]
[314973428,1708708267746,-629.8,0.00029315,2]
[314973429,1708708267756,-1789.17,0.00029315,2]
[314973430,1708708267766,-1115.24,0.00029315,2]
[314973431,1708708267775,-1141.39,0.00029315,2]
[314973432,1708708267785,-2038.67,0.00029315,2]
[314973433,1708708267795,-573.83,0.00029315,2]
[314973434,1708708267805,-963.44,0.00029315,2]
[314973435,1708708267814,-678.01,0.00029315,2]
[314973436,1708708267824,-3143.61,0.00029315,2]
[314973437,1708708267833,-500.0,0.00029315,2]
[314973438,1708708267843,-579.45,0.00029315,2]
[314973439,1708708267852,-500.0,0.00029315,2]
[314973440,1708708267862,-500.0,0.00029315,2]
[314973441,1708708267871,-11065.66378955,0.00029326,2]
[314973442,1708708267881,-163.70167317,0.00029328,2]
[314973443,1708708267891,-153.50007692,0.00029347,2]
[314973444,1708708267901,-153.33262733,0.0002936,2]
[314973445,1708708267910,-166.16201499,0.00029369,2]
[314973446,1708708267920,-154.98329938,0.00029389,2]
[314973447,1708708267929,-154.98329938,0.00029399,2]
[314973448,1708708267939,-1011.0,0.000294,2]
[314973449,1708708267949,-155.59752133,0.00029402,2]
[314973450,1708708267959,-30158.05772281,0.00029403,2]
[314973451,1708708267968,-1687.68629731,0.00029406,2]
[314973452,1708708267978,-687.74315006,0.00029421,2]
[314973453,1708708267988,-156.321914,0.00029422,2]
[314973454,1708708267997,-153.31768893,0.0002944,2]
[314973455,1708708268007,-155.57626885,0.00029443,2]
[314973456,1708708268016,-312.90666873,0.00029452,2]
[314973457,1708708268027,-500.0,0.00029452,2]
[314973458,1708708268036,-604.54658732,0.00029452,2]
[314973459,1708708268046,-500.0,0.00029452,2]
[314973460,1708708268055,-500.0,0.00029452,2]
[314973461,1708708268065,-518.18,0.00029452,2]
[314973462,1708708268074,-556.81,0.00029452,2]
[314973463,1708708268084,-500.0,0.00029452,2]
[314973464,1708708268093,-427.45617508,0.00029452,2]
[314973465,1708708268103,-500.0,0.00029452,2]
[314973466,1708708268112,-576.47,0.00029452,2]
[314973467,1708708268121,-428.41,0.00029452,2]
[314973468,1708708268131,-998.18,0.00029452,2]
[314973469,1708708268140,-500.0,0.00029452,2]
[314973470,1708708268149,-521.42,0.00029452,2]
[314973471,1708708268159,-684.37,0.00029452,2]
[314973472,1708708268168,-674.6,0.00029452,2]
[314973473,1708708268178,-1130.32,0.00029452,2]
[314973474,1708708268187,-1732.27,0.00029452,2]
[314973475,1708708268197,-934.36,0.00029452,2]
[314973476,1708708268208,-500.0,0.00029452,2]
[314973477,1708708268217,-1204.12,0.00029452,2]
[314973478,1708708268227,-732.51,0.00029452,2]
[314973479,1708708268237,-1076.17,0.00029452,2]
[314973480,1708708268246,-1624.92,0.00029452,2]
[314973481,1708708268256,-1776.01,0.00029452,2]
[314973482,1708708268265,-629.8,0.00029452,2]
[314973483,1708708268275,-1789.17,0.00029452,2]
[314973484,1708708268285,-1115.24,0.00029452,2]
[314973485,1708708268294,-1141.39,0.00029452,2]
[314973486,1708708268305,-2038.67,0.00029452,2]
[314973487,1708708268315,-573.83,0.00029452,2]
[314973488,1708708268324,-963.44,0.00029452,2]
[314973489,1708708268334,-678.01,0.00029452,2]
[314973490,1708708268343,-3143.61,0.00029452,2]
[314973491,1708708268353,-500.0,0.00029452,2]
[314973492,1708708268362,-579.45,0.00029452,2]
[314973493,1708708268371,-500.0,0.00029452,2]
[314973494,1708708268381,-500.0,0.00029452,2]
[314973495,1708708268390,-192.59378234,0.00029456,2]
[314973496,1708708268399,-154.98329938,0.00029468,2]
[314973497,1708708268408,-155.85963337,0.00029472,2]
[314973498,1708708268417,-192.59378234,0.00029481,2]
[314973499,1708708268426,-155.76031539,0.00029482,2]
[314973500,1708708268435,-15804.76464364,0.0002949,2]
[314973501,1708708268445,-587.0,0.00029499,2]
[314973502,1708708268454,-203.0,0.000295,30]
[314973503,1708708268463,-307.13537821,0.000295,3]
[314973504,1708708268472,-4340.0000003,0.000295,2]
[314973505,1708708268481,-444.0,0.000295,2]
[314973506,1708708268490,-154.02083881,0.00029533,2]
[314973507,1708708268500,-4736.06516168,0.00029544,2]
[314973508,1708708268509,-151.49591866,0.00029544,2]
[314973509,1708708268519,-652.216,0.00029548,2]
[314973510,1708708268529,-150.0,0.00029548,2]
[314973511,1708708268541,-152.6064863,0.00029554,2]
[314973512,1708708268551,-687.74315006,0.00029575,2]
[314973513,1708708268560,-150.0,0.00029581,2]
[314973514,1708708268570,-150.0,0.00029581,2]
[314973515,1708708268580,-150.0,0.00029581,2]
[314973516,1708708268589,-151.98417,0.00029581,2]
[314973517,1708708268598,-155.21572,0.00029581,2]
[314973518,1708708268608,-169.19547486,0.00029582,2]
[314973519,1708708268617,-500.0,0.00029589,2]
[314973520,1708708268627,-500.0,0.00029589,2]
[314973521,1708708268637,-500.0,0.00029589,2]
[314973522,1708708268647,-518.18,0.00029589,2]
[314973523,1708708268657,-151.0,0.00029589,7]
[314973524,1708708268666,-151.0,0.00029589,2]
[314973525,1708708268676,-151.0,0.00029589,7]
[314973526,1708708268685,-556.81,0.00029589,2]
[314973527,1708708268695,-151.0,0.00029589,7]
[314973528,1708708268705,-500.0,0.00029589,2]
[314973529,1708708268716,-209.708092,0.00029589,7]
[314973530,1708708268726,-500.0,0.00029589,2]
[314973531,1708708268736,-576.47,0.00029589,2]
[314973532,1708708268746,-998.18,0.00029589,2]
[314973533,1708708268755,-500.0,0.00029589,2]
[314973534,1708708268764,-521.42,0.00029589,2]
[314973535,1708708268775,-684.37,0.00029589,2]
[314973536,1708708268784,-674.6,0.00029589,2]
[314973537,1708708268793,-1130.32,0.00029589,2]
[314973538,1708708268803,-1732.27,0.00029589,2]
[314973539,1708708268813,-934.36,0.00029589,2]
[314973540,1708708268822,-500.0,0.00029589,2]
[314973541,1708708268831,-1204.12,0.00029589,2]
[314973542,1708708268841,-732.51,0.00029589,2]
[314973543,1708708268851,-1076.17,0.00029589,2]
[314973544,1708708268861,-1624.92,0.00029589,2]
[314973545,1708708268870,-1776.01,0.00029589,2]
[314973546,1708708268879,-629.8,0.00029589,2]
[314973547,1708708268889,-1789.17,0.00029589,2]
[314973548,1708708268898,-1115.24,0.00029589,2]
[314973549,1708708268908,-1141.39,0.00029589,2]
[314973550,1708708268917,-2038.67,0.00029589,2]
[314973551,1708708268926,-573.83,0.00029589,2]
[314973552,1708708268936,-963.44,0.00029589,2]
[314973553,1708708268946,-678.01,0.00029589,2]
[314973554,1708708268955,-3143.61,0.00029589,2]
[314973555,1708708268964,-500.0,0.00029589,2]
[314973556,1708708268974,-579.45,0.00029589,2]
[314973557,1708708268983,-500.0,0.00029589,2]
[314973558,1708708268992,-500.0,0.00029589,2]
[314973559,1708708269001,-172.6258371,0.00029595,2]
[314973560,1708708269010,-3000.0,0.000296,2]
[314973561,1708708269019,-155.57626885,0.000296,2]
[314973562,1708708269030,-50000.0,0.000296,2]
[314973563,1708708269039,-154.98329938,0.00029624,2]
[314973564,1708708269049,-191.05512198,0.00029661,2]
[314973565,1708708269059,-163.70167317,0.00029668,2]
[314973566,1708708269069,-167.65885402,0.00029669,2]
[314973567,1708708269078,-972.22651836,0.0002967,2]
[314973568,1708708269087,-766.50211336,0.00029672,4]
[314973569,1708708269096,-893.98275835,0.00029672,2]
[314973570,1708708269106,-5983.17749437,0.00029672,2]
[314973571,1708708269115,-155.57626885,0.00029674,2]
[314973572,1708708269124,-159.29487323,0.00029675,2]
[314973573,1708708269133,-1733.96185551,0.00029676,2]
[314973574,1708708269142,-834.78673247,0.0002968,2]
[314973575,1708708269151,-151.0,0.00029688,30]
[314973576,1708708269160,-199.0,0.000297,2]
[314973577,1708708269169,-1315.6412712,0.000297,2]
[314973578,1708708269238,-200.0,0.000297,2]
[314973579,1708708269247,-275.5,0.000297,2]
[314973580,1708708269257,-151.54644394,0.00029724,2]
[314973581,1708708269266,-500.0,0.00029726,2]
[314973582,1708708269276,-500.0,0.00029726,2]
[314973583,1708708269287,-216.96202189,0.00029726,2]
[314973584,1708708269296,-518.18,0.00029726,2]
[314973585,1708708269305,-556.81,0.00029726,2]
[314973586,1708708269316,-500.0,0.00029726,2]
[314973587,1708708269325,-229.20832168,0.00029726,2]
[314973588,1708708269335,-576.47,0.00029726,2]
[314973589,1708708269344,-998.18,0.00029726,2]
[314973590,1708708269353,-501.544881,0.00029726,2]
[314973591,1708708269362,-521.42,0.00029726,2]
[314973592,1708708269372,-684.37,0.00029726,2]
[314973593,1708708269381,-674.6,0.00029726,2]
[314973594,1708708269390,-1130.32,0.00029726,2]
[314973595,1708708269399,-1732.27,0.00029726,2]
[314973596,1708708269408,-934.36,0.00029726,2]
[314973597,1708708269417,-500.0,0.00029726,2]
[314973598,1708708269427,-1204.12,0.00029726,2]
[314973599,1708708269436,-732.51,0.00029726,2]
[314973600,1708708269445,-1076.17,0.00029726,2]
[314973601,1708708269454,-1624.92,0.00029726,2]
[314973602,1708708269464,-1776.01,0.00029726,2]
[314973603,1708708269473,-629.8,0.00029726,2]
[314973604,1708708269483,-1789.17,0.00029726,2]
[314973605,1708708269492,-1115.24,0.00029726,2]
[314973606,1708708269502,-1141.39,0.00029726,2]
[314973607,1708708269511,-2038.67,0.00029726,2]
[314973608,1708708269521,-573.83,0.00029726,2]
[314973609,1708708269533,-963.44,0.00029726,2]
[314973610,1708708269547,-678.01,0.00029726,2]
[314973611,1708708269557,-3143.61,0.00029726,2]
[314973612,1708708269566,-648.70969602,0.00029726,2]
[314973613,1708708269575,-579.45,0.00029726,2]
[314973614,1708708269585,-500.0,0.00029726,2]
[314973615,1708708269595,-500.0,0.00029726,2]
[314973616,1708708269604,-1773.04,0.00029726,2]
[314973617,1708708269613,-430.12,0.00029726,2]
[314973618,1708708269623,-406.47,0.00029726,2]
[314973619,1708708269633,-406.47,0.00029726,2]
[314973620,1708708269642,-463.28,0.00029743,2]
[314973621,1708708269651,-231.74299246,0.0002976,2]
[314973622,1708708269661,-1027190.86010975,0.00029761,2]
[314973623,1708708269670,-8879.78902054,0.00029761,2]
[314973624,1708708269680,-151.0,0.00029761,7]
[314973625,1708708269689,-449.046,0.00029761,7]
[314973626,1708708269698,-449.046,0.00029761,7]
[314973627,1708708269707,-151.0,0.00029761,7]
[314973628,1708708269718,-151.0,0.00029761,7]
[314973629,1708708269727,-185.679318,0.00029761,7]
[314973630,1708708269737,-151.0,0.00029761,3]
[314973631,1708708269746,-171.234104,0.00029761,2]
[314973632,1708708269755,-151.0,0.00029761,7]
[314973633,1708708269765,-151.0,0.00029761,7]
[314973634,1708708269775,-151.0,0.00029761,7]